[Event "Titled Tuesday Blitz November 29 Early 2022"]
[White "Xiong, Jeffery"]
[Black "Kosakowski, Jakub"]
[WhiteFideId "2047640"]
[BlackFideId "1185080"]
[WhiteElo "2725"]
[BlackElo "2463"]
[Result "1-0"]
[Round "04"]
[TimeControl "180+1"]
[Date "2022.11.30"]
[WhiteClock "0:00:15"]
[BlackClock "0:00:11"]

1. d4 {[%clk 0:02:54]}  d5 {[%clk 0:02:59]} 2. c4 {[%clk 0:02:54]}  e5 {[%clk 0:02:59]} 3. dxe5 {[%clk 0:02:52]}  d4 {[%clk 0:02:59]} 4. Nf3 {[%clk 0:02:47]}  Nc6 {[%clk 0:03:00]} 5. a3 {[%clk 0:02:48]}  Nge7 {[%clk 0:02:59]} 6. b4 {[%clk 0:02:47]}  Ng6 {[%clk 0:02:59]} 7. Bb2 {[%clk 0:02:35]}  a5 {[%clk 0:02:59]} 8. b5 {[%clk 0:02:34]}  Ncxe5 {[%clk 0:02:59]} 9. Nxe5 {[%clk 0:02:35]}  Nxe5 {[%clk 0:02:59]} 10. Qxd4 {[%clk 0:02:35]}  Qxd4 {[%clk 0:02:59]} 11. Bxd4 {[%clk 0:02:36]}  Nxc4 {[%clk 0:03:00]} 12. e3 {[%clk 0:02:37]}  Be6 {[%clk 0:03:01]} 13. Be2 {[%clk 0:02:34]}  f6 {[%clk 0:02:57]} 14. O-O {[%clk 0:02:34]}  Bd6 {[%clk 0:02:55]} 15. Rc1 {[%clk 0:02:34]}  Nb6 {[%clk 0:02:23]} 16. Nd2 {[%clk 0:02:27]}  Ke7 {[%clk 0:02:01]} 17. Ne4 {[%clk 0:02:24]}  Nd5 {[%clk 0:02:02]} 18. Nxd6 {[%clk 0:02:18]}  cxd6 {[%clk 0:02:02]} 19. Bf3 {[%clk 0:01:55]}  Rhc8 {[%clk 0:02:00]} 20. Kf1 {[%clk 0:01:55]}  Kd7 {[%clk 0:01:58]} 21. Ke1 {[%clk 0:01:55]}  Rxc1+ {[%clk 0:01:38]} 22. Rxc1 {[%clk 0:01:56]}  Rc8 {[%clk 0:01:38]} 23. Kd2 {[%clk 0:01:48]}  Rxc1 {[%clk 0:01:25]} 24. Kxc1 {[%clk 0:01:49]}  Nc7 {[%clk 0:01:25]} 25. a4 {[%clk 0:01:44]}  Bd5 {[%clk 0:01:23]} 26. Bd1 {[%clk 0:01:17]}  Ne6 {[%clk 0:01:09]} 27. Bb6 {[%clk 0:00:57]}  Nc5 {[%clk 0:01:09]} 28. Kd2 {[%clk 0:00:57]}  Bb3 {[%clk 0:00:59]} 29. Bxb3 {[%clk 0:00:55]}  Nxb3+ {[%clk 0:00:59]} 30. Kc3 {[%clk 0:00:33]}  Nc5 {[%clk 0:00:59]} 31. Bxc5 {[%clk 0:00:33]}  dxc5 {[%clk 0:00:58]} 32. b6 {[%clk 0:00:34]}  Kc6 {[%clk 0:00:29]} 33. Kc4 {[%clk 0:00:35]}  Kxb6 {[%clk 0:00:24]} 34. Kd5 {[%clk 0:00:36]}  c4 {[%clk 0:00:24]} 35. Kxc4 {[%clk 0:00:36]}  Kc6 {[%clk 0:00:25]} 36. e4 {[%clk 0:00:37]}  b6 {[%clk 0:00:25]} 37. f4 {[%clk 0:00:37]}  g5 {[%clk 0:00:23]} 38. e5 {[%clk 0:00:28]}  fxe5 {[%clk 0:00:21]} 39. fxe5 {[%clk 0:00:22]}  h5 {[%clk 0:00:16]} 40. e6 {[%clk 0:00:18]}  g4 {[%clk 0:00:12]} 41. e7 {[%clk 0:00:18]}  Kd7 {[%clk 0:00:12]} 42. Kb5 {[%clk 0:00:18]}  Kxe7 {[%clk 0:00:13]} 43. Kxb6 {[%clk 0:00:19]}  Kd6 {[%clk 0:00:13]} 44. Kxa5 {[%clk 0:00:19]}  Kc5 {[%clk 0:00:13]} 45. Ka6 {[%clk 0:00:20]}  Kc6 {[%clk 0:00:14]} 46. a5 {[%clk 0:00:17]}  h4 {[%clk 0:00:13]} 47. g3 {[%clk 0:00:11]}  hxg3 {[%clk 0:00:08]} 48. hxg3 {[%clk 0:00:12]}  Kc7 {[%clk 0:00:09]} 49. Kb5 {[%clk 0:00:12]}  Kb7 {[%clk 0:00:09]} 50. Kc5 {[%clk 0:00:12]}  Ka6 {[%clk 0:00:10]} 51. Kd4 {[%clk 0:00:12]}  Kxa5 {[%clk 0:00:09]} 52. Ke4 {[%clk 0:00:13]}  Kb6 {[%clk 0:00:10]} 53. Kf4 {[%clk 0:00:14]}  Kc7 {[%clk 0:00:11]} 54. Kxg4 {[%clk 0:00:15]}  Kd7 {[%clk 0:00:11]} 55. Kf5 {[%clk 0:00:15]} 1-0


[Site "https://www.chess.com"]

[Event "Titled Tuesday Blitz November 29 Early 2022"]
[White "Yuan, Qingyu"]
[Black "Ezat, Mohamed"]
[WhiteFideId "8609772"]
[BlackFideId "10600906"]
[WhiteElo "2359"]
[BlackElo "2386"]
[Result "1-0"]
[Round "04"]
[TimeControl "180+1"]
[Date "2022.11.30"]
[WhiteClock "0:00:06"]
[BlackClock "0:00:02"]

1. e4 {[%clk 0:03:00]}  c6 {[%clk 0:01:55]} 2. d4 {[%clk 0:02:57]}  d5 {[%clk 0:01:41]} 3. e5 {[%clk 0:02:57]}  c5 {[%clk 0:01:38]} 4. Nf3 {[%clk 0:02:57]}  Nc6 {[%clk 0:01:35]} 5. Bb5 {[%clk 0:02:53]}  Bg4 {[%clk 0:01:35]} 6. dxc5 {[%clk 0:02:46]}  Qa5+ {[%clk 0:01:33]} 7. Nc3 {[%clk 0:02:40]}  e6 {[%clk 0:01:34]} 8. h3 {[%clk 0:02:04]}  Bxf3 {[%clk 0:01:30]} 9. Qxf3 {[%clk 0:02:04]}  Bxc5 {[%clk 0:01:30]} 10. O-O {[%clk 0:01:35]}  Ne7 {[%clk 0:01:29]} 11. Bf4 {[%clk 0:01:21]}  O-O {[%clk 0:01:28]} 12. Bd3 {[%clk 0:01:21]}  Ng6 {[%clk 0:01:26]} 13. Bxg6 {[%clk 0:01:11]}  fxg6 {[%clk 0:01:23]} 14. Qg4 {[%clk 0:01:07]}  Rf5 {[%clk 0:01:23]} 15. Bg3 {[%clk 0:01:02]}  Raf8 {[%clk 0:01:20]} 16. Rae1 {[%clk 0:00:57]}  Qb4 {[%clk 0:01:19]} 17. Nd1 {[%clk 0:00:50]}  Qxg4 {[%clk 0:01:03]} 18. hxg4 {[%clk 0:00:50]}  R5f7 {[%clk 0:01:04]} 19. c3 {[%clk 0:00:45]}  h5 {[%clk 0:00:59]} 20. gxh5 {[%clk 0:00:38]}  gxh5 {[%clk 0:00:58]} 21. Kh1 {[%clk 0:00:34]}  g5 {[%clk 0:00:55]} 22. f3 {[%clk 0:00:34]}  h4 {[%clk 0:00:50]} 23. Bf2 {[%clk 0:00:30]}  Bxf2 {[%clk 0:00:50]} 24. Nxf2 {[%clk 0:00:30]}  Rf5 {[%clk 0:00:46]} 25. Ng4 {[%clk 0:00:31]}  Kg7 {[%clk 0:00:46]} 26. Kh2 {[%clk 0:00:25]}  Kg6 {[%clk 0:00:45]} 27. Kh3 {[%clk 0:00:25]}  Rf4 {[%clk 0:00:44]} 28. Rf2 {[%clk 0:00:21]}  a5 {[%clk 0:00:38]} 29. Rd2 {[%clk 0:00:17]}  a4 {[%clk 0:00:35]} 30. b3 {[%clk 0:00:17]}  axb3 {[%clk 0:00:33]} 31. axb3 {[%clk 0:00:18]}  b5 {[%clk 0:00:31]} 32. Ra2 {[%clk 0:00:16]}  b4 {[%clk 0:00:28]} 33. Ra6 {[%clk 0:00:15]}  Rc8 {[%clk 0:00:29]} 34. Rc1 {[%clk 0:00:13]}  Kf7 {[%clk 0:00:09]} 35. cxb4 {[%clk 0:00:11]}  Ne7 {[%clk 0:00:09]} 36. Rxc8 {[%clk 0:00:07]}  Nxc8 {[%clk 0:00:10]} 37. b5 {[%clk 0:00:07]}  Rb4 {[%clk 0:00:08]} 38. Rc6 {[%clk 0:00:07]}  Ne7 {[%clk 0:00:07]} 39. Rc7 {[%clk 0:00:06]}  Rxb5 {[%clk 0:00:07]} 40. Rc3 {[%clk 0:00:05]}  Rb4 {[%clk 0:00:07]} 41. Nf6 {[%clk 0:00:05]}  Ng6 {[%clk 0:00:07]} 42. Rc7+ {[%clk 0:00:05]}  Kf8 {[%clk 0:00:08]} 43. Nd7+ {[%clk 0:00:05]}  Kg7 {[%clk 0:00:07]} 44. Nc5+ {[%clk 0:00:05]}  Kh6 {[%clk 0:00:07]} 45. Nxe6 {[%clk 0:00:06]}  Rxb3 {[%clk 0:00:08]} 46. Rc6 {[%clk 0:00:06]}  Rb1 {[%clk 0:00:06]} 47. Nd4 {[%clk 0:00:06]}  Rh1+ {[%clk 0:00:02]} 48. Kg4 {[%clk 0:00:06]} 1-0


[Site "https://www.chess.com"]

[Event "Titled Tuesday Blitz November 29 Early 2022"]
[White "Zacurdajev, Dmitry"]
[Black "Fawzy, Adham"]
[WhiteFideId "4196309"]
[BlackFideId "10613129"]
[WhiteElo "2179"]
[BlackElo "2541"]
[Result "0-1"]
[Round "04"]
[TimeControl "180+1"]
[Date "2022.11.30"]
[WhiteClock "0:00:11"]
[BlackClock "0:00:13"]

1. d4 {[%clk 0:03:00]}  Nf6 {[%clk 0:02:59]} 2. c4 {[%clk 0:02:58]}  g6 {[%clk 0:02:59]} 3. Nc3 {[%clk 0:02:58]}  Bg7 {[%clk 0:02:59]} 4. e4 {[%clk 0:02:58]}  d6 {[%clk 0:03:00]} 5. Nf3 {[%clk 0:02:58]}  O-O {[%clk 0:03:00]} 6. Be2 {[%clk 0:02:59]}  e5 {[%clk 0:03:01]} 7. O-O {[%clk 0:02:59]}  Nc6 {[%clk 0:03:01]} 8. d5 {[%clk 0:02:59]}  Ne7 {[%clk 0:03:01]} 9. Ne1 {[%clk 0:02:59]}  Nd7 {[%clk 0:03:00]} 10. Be3 {[%clk 0:02:59]}  f5 {[%clk 0:03:01]} 11. f3 {[%clk 0:02:59]}  f4 {[%clk 0:03:01]} 12. Bf2 {[%clk 0:03:00]}  g5 {[%clk 0:03:02]} 13. b4 {[%clk 0:03:00]}  Nf6 {[%clk 0:03:01]} 14. c5 {[%clk 0:03:00]}  Ng6 {[%clk 0:03:01]} 15. c6 {[%clk 0:03:01]}  b6 {[%clk 0:02:07]} 16. a4 {[%clk 0:02:59]}  h5 {[%clk 0:02:05]} 17. a5 {[%clk 0:02:59]}  bxa5 {[%clk 0:01:30]} 18. Rxa5 {[%clk 0:03:00]}  g4 {[%clk 0:01:26]} 19. Rxa7 {[%clk 0:02:48]}  Rxa7 {[%clk 0:01:05]} 20. Bxa7 {[%clk 0:02:49]}  g3 {[%clk 0:01:06]} 21. h3 {[%clk 0:01:56]}  Nh7 {[%clk 0:00:50]} 22. Nd3 {[%clk 0:00:39]}  Qh4 {[%clk 0:00:44]} 23. Re1 {[%clk 0:00:36]}  Bxh3 {[%clk 0:00:27]} 24. Bf1 {[%clk 0:00:10]}  Bc8 {[%clk 0:00:14]} 25. Be2 {[%clk 0:00:10]}  Qh2+ {[%clk 0:00:12]} 26. Kf1 {[%clk 0:00:11]}  Nh4 {[%clk 0:00:13]} 0-1


[Site "https://www.chess.com"]

[Event "Titled Tuesday Blitz November 29 Early 2022"]
[White "Zaichenko, Daria"]
[Black "Przybylski, Wojciech"]
[WhiteFideId "4197453"]
[BlackFideId "1117599"]
[WhiteElo "2039"]
[BlackElo "2221"]
[Result "0-1"]
[Round "04"]
[TimeControl "180+1"]
[Date "2022.11.30"]
[WhiteClock "0:00:04"]
[BlackClock "0:00:06"]

1. e4 {[%clk 0:02:57]}  e5 {[%clk 0:02:59]} 2. Nf3 {[%clk 0:02:57]}  Nc6 {[%clk 0:02:59]} 3. Bc4 {[%clk 0:02:57]}  Nf6 {[%clk 0:02:58]} 4. d3 {[%clk 0:02:57]}  Bc5 {[%clk 0:02:57]} 5. c3 {[%clk 0:02:57]}  O-O {[%clk 0:02:57]} 6. b4 {[%clk 0:02:57]}  Bd6 {[%clk 0:02:54]} 7. O-O {[%clk 0:02:46]}  Qe7 {[%clk 0:02:51]} 8. Bg5 {[%clk 0:02:42]}  h6 {[%clk 0:02:50]} 9. Bh4 {[%clk 0:02:42]}  g5 {[%clk 0:02:50]} 10. Nxg5 {[%clk 0:02:41]}  hxg5 {[%clk 0:02:34]} 11. Bxg5 {[%clk 0:02:41]}  Kg7 {[%clk 0:02:32]} 12. Qf3 {[%clk 0:02:26]}  Rh8 {[%clk 0:02:27]} 13. Qg3 {[%clk 0:02:19]}  Kf8 {[%clk 0:02:26]} 14. Qf3 {[%clk 0:02:18]}  Kg7 {[%clk 0:02:25]} 15. Qg3 {[%clk 0:02:18]}  Nh5 {[%clk 0:02:10]} 16. Qg4 {[%clk 0:02:17]}  f6 {[%clk 0:01:58]} 17. Be3+ {[%clk 0:01:55]}  Kf8 {[%clk 0:01:57]} 18. Nd2 {[%clk 0:01:35]}  Nd8 {[%clk 0:01:49]} 19. Nf3 {[%clk 0:01:31]}  Ne6 {[%clk 0:01:41]} 20. Nh4 {[%clk 0:01:30]}  Qg7 {[%clk 0:01:33]} 21. Ng6+ {[%clk 0:01:24]}  Ke8 {[%clk 0:01:33]} 22. h3 {[%clk 0:00:26]}  Rh7 {[%clk 0:01:13]} 23. d4 {[%clk 0:00:20]}  Nef4 {[%clk 0:01:11]} 24. Bxf4 {[%clk 0:00:15]}  Nxf4 {[%clk 0:01:08]} 25. Nxf4 {[%clk 0:00:12]}  Qxg4 {[%clk 0:01:07]} 26. hxg4 {[%clk 0:00:11]}  exf4 {[%clk 0:01:07]} 27. f3 {[%clk 0:00:12]}  c6 {[%clk 0:01:00]} 28. Kf2 {[%clk 0:00:12]}  Bf8 {[%clk 0:00:40]} 29. Rh1 {[%clk 0:00:11]}  Rxh1 {[%clk 0:00:24]} 30. Rxh1 {[%clk 0:00:10]}  Bg7 {[%clk 0:00:24]} 31. Rh7 {[%clk 0:00:10]}  Kf8 {[%clk 0:00:24]} 32. g3 {[%clk 0:00:08]}  fxg3+ {[%clk 0:00:23]} 33. Kxg3 {[%clk 0:00:08]}  d5 {[%clk 0:00:22]} 34. exd5 {[%clk 0:00:08]}  cxd5 {[%clk 0:00:23]} 35. Bxd5 {[%clk 0:00:09]}  a5 {[%clk 0:00:22]} 36. b5 {[%clk 0:00:08]}  Bd7 {[%clk 0:00:22]} 37. Bxb7 {[%clk 0:00:08]}  Rb8 {[%clk 0:00:20]} 38. Bc6 {[%clk 0:00:04]}  Bxc6 {[%clk 0:00:19]} 39. bxc6 {[%clk 0:00:04]}  Kg8 {[%clk 0:00:17]} 40. Rh5 {[%clk 0:00:03]}  Rc8 {[%clk 0:00:14]} 41. d5 {[%clk 0:00:04]}  Bf8 {[%clk 0:00:14]} 42. Rf5 {[%clk 0:00:04]}  Bd6+ {[%clk 0:00:14]} 43. Kf2 {[%clk 0:00:03]}  Kg7 {[%clk 0:00:14]} 44. g5 {[%clk 0:00:04]}  fxg5 {[%clk 0:00:13]} 45. Rxg5+ {[%clk 0:00:04]}  Kf6 {[%clk 0:00:14]} 46. Rh5 {[%clk 0:00:04]}  Kg6 {[%clk 0:00:07]} 47. Rh4 {[%clk 0:00:04]}  Rb8 {[%clk 0:00:06]} 48. Ra4 {[%clk 0:00:04]}  Kf5 {[%clk 0:00:05]} 49. Rxa5 {[%clk 0:00:04]}  Ke5 {[%clk 0:00:06]} 50. c4 {[%clk 0:00:03]}  Rh8 {[%clk 0:00:05]} 51. c5 {[%clk 0:00:03]}  Bc7 {[%clk 0:00:04]} 52. Ra4 {[%clk 0:00:03]}  Kxd5 {[%clk 0:00:04]} 53. Ra7 {[%clk 0:00:02]}  Kxc6 {[%clk 0:00:05]} 54. a4 {[%clk 0:00:02]}  Rh2+ {[%clk 0:00:04]} 55. Ke3 {[%clk 0:00:02]}  Ra2 {[%clk 0:00:04]} 56. Ke4 {[%clk 0:00:02]}  Ra3 {[%clk 0:00:04]} 57. f4 {[%clk 0:00:02]}  Bd8 {[%clk 0:00:04]} 58. f5 {[%clk 0:00:03]}  Kxc5 {[%clk 0:00:04]} 59. Ra8 {[%clk 0:00:02]}  Bc7 {[%clk 0:00:04]} 60. Rc8 {[%clk 0:00:02]}  Kc6 {[%clk 0:00:04]} 61. f6 {[%clk 0:00:03]}  Rxa4+ {[%clk 0:00:04]} 62. Kf5 {[%clk 0:00:03]}  Ra1 {[%clk 0:00:04]} 63. Kg6 {[%clk 0:00:03]}  Rg1+ {[%clk 0:00:04]} 64. Kf7 {[%clk 0:00:03]}  Kd7 {[%clk 0:00:04]} 65. Kf8 {[%clk 0:00:03]}  Bd6+ {[%clk 0:00:04]} 66. Kf7 {[%clk 0:00:02]}  Kxc8 {[%clk 0:00:05]} 67. Ke6 {[%clk 0:00:03]}  Bc5 {[%clk 0:00:05]} 68. f7 {[%clk 0:00:03]}  Bb4 {[%clk 0:00:05]} 69. Kf6 {[%clk 0:00:02]}  Rf1+ {[%clk 0:00:06]} 70. Ke6 {[%clk 0:00:02]}  Kd8 {[%clk 0:00:06]} 71. Kd5 {[%clk 0:00:03]}  Rxf7 {[%clk 0:00:05]} 72. Kc6 {[%clk 0:00:03]}  Rd7 {[%clk 0:00:05]} 73. Kb5 {[%clk 0:00:03]}  Rc7 {[%clk 0:00:06]} 74. Kb6 {[%clk 0:00:04]}  Kd7 {[%clk 0:00:06]} 0-1


[Site "https://www.chess.com"]

[Event "Titled Tuesday Blitz November 29 Early 2022"]
[White "Zaksaite, Salomeja"]
[Black "Sadovsky, Artem"]
[WhiteFideId "12801496"]
[BlackFideId "4155840"]
[WhiteElo "2079"]
[BlackElo "2312"]
[Result "1-0"]
[Round "04"]
[TimeControl "180+1"]
[Date "2022.11.30"]
[WhiteClock "0:00:09"]
[BlackClock "0:00:18"]

1. e4 {[%clk 0:03:00]}  g6 {[%clk 0:02:12]} 2. d4 {[%clk 0:02:59]}  Bg7 {[%clk 0:01:22]} 3. Nc3 {[%clk 0:02:58]}  c6 {[%clk 0:01:22]} 4. Bc4 {[%clk 0:02:29]}  d5 {[%clk 0:01:20]} 5. exd5 {[%clk 0:02:29]}  b5 {[%clk 0:01:13]} 6. Bb3 {[%clk 0:02:24]}  b4 {[%clk 0:01:07]} 7. Nce2 {[%clk 0:02:24]}  cxd5 {[%clk 0:01:07]} 8. Nf3 {[%clk 0:02:18]}  a5 {[%clk 0:00:40]} 9. a3 {[%clk 0:02:11]}  bxa3 {[%clk 0:00:39]} 10. Rxa3 {[%clk 0:02:11]}  Nf6 {[%clk 0:00:40]} 11. Bd2 {[%clk 0:02:08]}  O-O {[%clk 0:00:25]} 12. Qa1 {[%clk 0:02:06]}  Nc6 {[%clk 0:00:10]} 13. Ne5 {[%clk 0:02:02]}  Ne4 {[%clk 0:00:11]} 14. Nxc6 {[%clk 0:02:00]}  Qd6 {[%clk 0:00:11]} 15. Ne5 {[%clk 0:00:37]}  Bxe5 {[%clk 0:00:09]} 16. dxe5 {[%clk 0:00:36]}  Qxe5 {[%clk 0:00:10]} 17. Bf4 {[%clk 0:00:31]}  Qf6 {[%clk 0:00:09]} 18. O-O {[%clk 0:00:29]}  e5 {[%clk 0:00:09]} 19. Bxd5 {[%clk 0:00:24]}  exf4 {[%clk 0:00:10]} 20. Bxe4 {[%clk 0:00:21]}  Bg4 {[%clk 0:00:06]} 21. Bf3 {[%clk 0:00:16]}  Bf5 {[%clk 0:00:06]} 22. Bxa8 {[%clk 0:00:15]}  Rxa8 {[%clk 0:00:07]} 23. Rxa5 {[%clk 0:00:14]}  Rc8 {[%clk 0:00:07]} 24. Ra8 {[%clk 0:00:13]}  Kg7 {[%clk 0:00:07]} 25. Rxc8 {[%clk 0:00:12]}  Bxc8 {[%clk 0:00:08]} 26. b3 {[%clk 0:00:12]}  Bb7 {[%clk 0:00:08]} 27. Qxf6+ {[%clk 0:00:12]}  Kxf6 {[%clk 0:00:08]} 28. Nxf4 {[%clk 0:00:13]}  Kf5 {[%clk 0:00:09]} 29. g3 {[%clk 0:00:13]}  Bf3 {[%clk 0:00:08]} 30. Nd3 {[%clk 0:00:14]}  g5 {[%clk 0:00:09]} 31. Re1 {[%clk 0:00:13]}  f6 {[%clk 0:00:09]} 32. Re7 {[%clk 0:00:13]}  Bd5 {[%clk 0:00:10]} 33. Rxh7 {[%clk 0:00:13]}  Kg4 {[%clk 0:00:11]} 34. h4 {[%clk 0:00:12]}  f5 {[%clk 0:00:10]} 35. hxg5 {[%clk 0:00:12]}  Kf3 {[%clk 0:00:10]} 36. g6 {[%clk 0:00:12]}  Be4 {[%clk 0:00:11]} 37. g7 {[%clk 0:00:12]}  f4 {[%clk 0:00:12]} 38. g8=Q {[%clk 0:00:11]}  fxg3 {[%clk 0:00:13]} 39. Qxg3+ {[%clk 0:00:11]}  Ke2 {[%clk 0:00:14]} 40. Qe3+ {[%clk 0:00:11]}  Kd1 {[%clk 0:00:15]} 41. Rd7 {[%clk 0:00:10]}  Kxc2 {[%clk 0:00:16]} 42. Nc5 {[%clk 0:00:10]}  Bd3 {[%clk 0:00:17]} 43. Qxd3+ {[%clk 0:00:10]}  Kb2 {[%clk 0:00:18]} 44. Qd2+ {[%clk 0:00:10]}  Ka3 {[%clk 0:00:18]} 45. Ra7# {[%clk 0:00:09]} 1-0


[Site "https://www.chess.com"]

[Event "Titled Tuesday Blitz November 29 Early 2022"]
[White "Zhu, Jiner"]
[Black "Shuvalov, Evgenij"]
[WhiteFideId "8608059"]
[BlackFideId "4187237"]
[WhiteElo "2384"]
[BlackElo "2049"]
[Result "0-1"]
[Round "04"]
[TimeControl "180+1"]
[Date "2022.11.30"]
[WhiteClock "0:00:06"]
[BlackClock "0:00:13"]

1. c4 {[%clk 0:03:00]}  Nf6 {[%clk 0:02:55]} 2. Nc3 {[%clk 0:03:00]}  d5 {[%clk 0:02:53]} 3. cxd5 {[%clk 0:02:59]}  Nxd5 {[%clk 0:02:53]} 4. e4 {[%clk 0:02:59]}  Nxc3 {[%clk 0:02:53]} 5. bxc3 {[%clk 0:03:00]}  g6 {[%clk 0:02:52]} 6. Nf3 {[%clk 0:03:00]}  Bg7 {[%clk 0:02:53]} 7. Bc4 {[%clk 0:02:54]}  c5 {[%clk 0:02:50]} 8. d4 {[%clk 0:02:42]}  O-O {[%clk 0:02:46]} 9. Be3 {[%clk 0:02:38]}  Nc6 {[%clk 0:02:46]} 10. O-O {[%clk 0:02:33]}  b6 {[%clk 0:02:46]} 11. Rc1 {[%clk 0:02:28]}  Bb7 {[%clk 0:02:43]} 12. d5 {[%clk 0:02:27]}  Na5 {[%clk 0:02:36]} 13. Be2 {[%clk 0:02:27]}  e6 {[%clk 0:02:27]} 14. c4 {[%clk 0:02:24]}  exd5 {[%clk 0:02:27]} 15. exd5 {[%clk 0:02:17]}  Re8 {[%clk 0:02:23]} 16. Re1 {[%clk 0:02:14]}  Bc8 {[%clk 0:02:21]} 17. Bf4 {[%clk 0:02:01]}  Bf5 {[%clk 0:02:16]} 18. Qd2 {[%clk 0:01:54]}  Qd7 {[%clk 0:02:09]} 19. Bf1 {[%clk 0:01:29]}  Qa4 {[%clk 0:01:47]} 20. Ne5 {[%clk 0:01:25]}  Rad8 {[%clk 0:01:33]} 21. h3 {[%clk 0:01:21]}  h5 {[%clk 0:01:31]} 22. Re3 {[%clk 0:01:12]}  b5 {[%clk 0:00:58]} 23. Nc6 {[%clk 0:00:41]}  Nxc6 {[%clk 0:00:46]} 24. Rxe8+ {[%clk 0:00:40]}  Rxe8 {[%clk 0:00:47]} 25. dxc6 {[%clk 0:00:41]}  b4 {[%clk 0:00:41]} 26. c7 {[%clk 0:00:35]}  Qc6 {[%clk 0:00:39]} 27. Rd1 {[%clk 0:00:26]}  Bd4 {[%clk 0:00:37]} 28. Bd3 {[%clk 0:00:21]}  Bc8 {[%clk 0:00:33]} 29. Re1 {[%clk 0:00:18]}  Bb7 {[%clk 0:00:26]} 30. Rxe8+ {[%clk 0:00:17]}  Qxe8 {[%clk 0:00:26]} 31. Qe2 {[%clk 0:00:16]}  Qc6 {[%clk 0:00:24]} 32. Be4 {[%clk 0:00:15]}  Qe6 {[%clk 0:00:12]} 33. Bxb7 {[%clk 0:00:15]}  Qxe2 {[%clk 0:00:12]} 34. c8=Q+ {[%clk 0:00:16]}  Kh7 {[%clk 0:00:12]} 35. Bg3 {[%clk 0:00:15]}  h4 {[%clk 0:00:10]} 36. Bxh4 {[%clk 0:00:15]}  Qe1+ {[%clk 0:00:08]} 37. Kh2 {[%clk 0:00:15]}  Bxf2 {[%clk 0:00:08]} 38. Bxf2 {[%clk 0:00:15]}  Qxf2 {[%clk 0:00:09]} 39. Qc7 {[%clk 0:00:16]}  Kg7 {[%clk 0:00:09]} 40. Qe5+ {[%clk 0:00:15]}  Qf6 {[%clk 0:00:09]} 41. Qxf6+ {[%clk 0:00:14]}  Kxf6 {[%clk 0:00:09]} 42. Kg3 {[%clk 0:00:12]}  a5 {[%clk 0:00:10]} 43. Bc6 {[%clk 0:00:12]}  Ke5 {[%clk 0:00:11]} 44. Kf3 {[%clk 0:00:12]}  Kd4 {[%clk 0:00:11]} 45. Bb5 {[%clk 0:00:12]}  f5 {[%clk 0:00:11]} 46. Ke2 {[%clk 0:00:11]}  Kc3 {[%clk 0:00:11]} 47. Kd1 {[%clk 0:00:10]}  Kb2 {[%clk 0:00:11]} 48. Ba4 {[%clk 0:00:10]}  Kxa2 {[%clk 0:00:11]} 49. Kc2 {[%clk 0:00:10]}  Ka3 {[%clk 0:00:12]} 50. Be8 {[%clk 0:00:10]}  a4 {[%clk 0:00:12]} 51. Bxg6 {[%clk 0:00:11]}  b3+ {[%clk 0:00:12]} 52. Kb1 {[%clk 0:00:11]}  Kb4 {[%clk 0:00:12]} 53. Bxf5 {[%clk 0:00:11]}  Kxc4 {[%clk 0:00:13]} 54. Be6+ {[%clk 0:00:11]}  Kb4 {[%clk 0:00:13]} 55. g4 {[%clk 0:00:08]}  c4 {[%clk 0:00:14]} 56. g5 {[%clk 0:00:08]}  c3 {[%clk 0:00:14]} 57. g6 {[%clk 0:00:09]}  c2+ {[%clk 0:00:14]} 58. Kc1 {[%clk 0:00:08]}  Kc3 {[%clk 0:00:13]} 59. g7 {[%clk 0:00:06]}  b2# {[%clk 0:00:13]} 0-1


[Site "https://www.chess.com"]